bitfinex-derivatives/quotes_BTCF0:USTF0_20241110
["timestamp","ask_amount","ask_price","bid_price","bid_amount"]
[1731255797001,0.166215,79632.0,79623.0,0.062742]
[1731255797200,0.10348,79631.0,79623.0,0.062742]
[1731255797795,0.10348,79630.0,79623.0,0.062742]
[1731255798202,0.166217,79630.0,79623.0,0.062742]
[1731255798511,0.0738,79629.0,79623.0,0.062742]
[1731255799203,0.06274,79626.0,79619.0,0.41130741]
[1731255799504,0.142041,79625.0,79618.0,0.08485453]
[1731255799802,0.4365,79624.0,79618.0,0.08485453]
[1731255800107,0.4365,79624.0,79611.0,0.13593935]
[1731255800407,0.3608,79617.0,79611.0,0.13593935]
[1731255800592,0.10348,79616.0,79612.0,0.06275]
[1731255800790,0.10348,79616.0,79613.0,0.06275]
[1731255802396,0.3608,79617.0,79613.0,0.06275]
[1731255802604,0.10348,79615.0,79611.0,0.08485453]
[1731255803607,0.10348,79615.0,79612.0,0.062751]
[1731255805501,0.10348,79615.0,79605.0,0.08485453]
[1731255805906,0.062753,79609.0,79605.0,0.08485453]
[1731255806303,0.0783,79608.0,79605.0,0.08485453]
[1731255807910,0.0783,79608.0,79606.0,0.062755]
[1731255808108,0.10336,79607.0,79606.0,0.062755]
[1731255811707,0.10336,79607.0,79605.0,0.08485453]
[1731255811708,0.3608,79617.0,79605.0,0.08485453]
[1731255811907,0.10336,79616.0,79615.0,0.062748]
[1731255812117,0.06275,79613.0,79607.0,0.423555]
[1731255812415,0.10336,79616.0,79609.0,0.062753]
[1731255812630,0.423547,79617.0,79609.0,0.062753]
[1731255812916,0.10336,79616.0,79609.0,0.062753]
[1731255814814,0.166108,79616.0,79609.0,0.062753]
[1731255815320,0.166108,79616.0,79613.0,0.08485453]
[1731255815521,0.06276,79601.0,79592.0,0.062766]
[1731255815821,0.062749,79615.0,79591.0,0.423567]
[1731255815822,0.33326,79600.0,79591.0,0.423567]
[1731255816122,0.062764,79596.0,79591.0,0.423567]
[1731255816510,0.10336,79599.0,79591.0,0.41209632]
[1731255816712,0.10336,79599.0,79593.0,0.062766]
[1731255817014,0.3608,79594.0,79588.0,0.06277]
[1731255817411,0.3608,79594.0,79588.0,0.14762453]
[1731255817922,0.062766,79593.0,79588.0,0.14762453]
[1731255819121,0.062766,79593.0,79588.0,0.08485453]
[1731255820816,0.062726,79593.0,79588.0,0.14762453]
[1731255822114,0.062686,79593.0,79588.0,0.14762453]
[1731255822317,0.3608,79594.0,79591.0,0.062767]
[1731255822620,0.2299,79600.0,79584.0,0.05054926]
[1731255822814,0.1034,79599.0,79597.0,0.062762]
[1731255823220,0.1034,79598.0,79597.0,0.062763]
[1731255823718,0.3608,79603.0,79602.0,0.062759]
[1731255823922,0.4642,79603.0,79602.0,0.062759]
[1731255825021,0.1827,79611.0,79602.0,0.800439]
[1731255825216,0.1827,79611.0,79610.0,0.062752]
[1731255826727,0.1827,79611.0,79606.0,0.062755]
[1731255827126,0.1827,79611.0,79602.0,0.41108039]
[1731255827333,0.1827,79611.0,79609.0,0.062753]
[1731255828531,0.1827,79611.0,79603.0,0.062757]
[1731255829329,0.245412,79611.0,79603.0,0.062757]
[1731255829530,0.062753,79610.0,79603.0,0.062757]
[1731255829832,0.18266,79611.0,79604.0,0.062757]
[1731255829833,0.062754,79609.0,79604.0,0.062757]
[1731255830631,0.062754,79609.0,79605.0,0.062756]
[1731255830839,0.062754,79608.0,79601.0,0.08485453]
[1731255831133,0.062754,79608.0,79602.0,0.062758]
[1731255831527,0.3608,79606.0,79602.0,0.062758]
[1731255832127,0.062759,79602.0,79594.0,0.3608]
[1731255832429,0.1034,79601.0,79598.0,0.062761]
[1731255833118,0.1034,79601.0,79596.0,0.08485453]
[1731255833318,0.3608,79599.0,79595.0,0.062763]
[1731255833728,0.3608,79599.0,79590.0,0.08485453]
[1731255833924,0.062762,79598.0,79591.0,0.062767]
[1731255835125,0.062762,79598.0,79590.0,0.1353491]
[1731255835435,0.062762,79598.0,79593.0,0.062766]
[1731255837123,0.062764,79596.0,79590.0,0.08485453]
[1731255837329,0.0742,79595.0,79590.0,0.14762253]
[1731255838326,0.07416,79595.0,79590.0,0.14762253]
[1731255838528,0.062764,79596.0,79591.0,0.062767]
[1731255840332,0.062766,79593.0,79587.0,0.3608]
[1731255840526,0.4373,79599.0,79589.0,0.08485453]
[1731255840731,0.10332,79598.0,79597.0,0.062762]
[1731255841129,0.3608,79599.0,79597.0,0.08485453]
[1731255841436,0.3608,79599.0,79598.0,0.062762]
[1731255841739,0.46412,79599.0,79598.0,0.062762]
[1731255842539,0.3608,79599.0,79598.0,0.062762]
[1731255842743,0.46412,79599.0,79598.0,0.062762]
[1731255844237,0.3608,79599.0,79598.0,0.062762]
[1731255844429,0.46412,79599.0,79598.0,0.062762]
[1731255845033,0.3608,79599.0,79598.0,0.062762]
[1731255845738,0.46412,79599.0,79598.0,0.062762]
[1731255845939,0.10332,79599.0,79598.0,0.062762]
[1731255848147,0.1512,79610.0,79605.0,0.062756]
[1731255848442,0.46412,79606.0,79605.0,0.14761053]
[1731255848643,0.46412,79606.0,79605.0,0.062756]
[1731255850948,0.10332,79606.0,79605.0,0.062756]
[1731255851949,0.10332,79606.0,79605.0,0.1133711]
[1731255852250,0.3608,79610.0,79608.0,0.062754]
[1731255852544,0.0714,79622.0,79617.0,0.062747]
[1731255852743,0.46412,79618.0,79617.0,0.14760153]
[1731255852947,0.10332,79620.0,79617.0,0.08485453]
[1731255853150,0.0753,79629.0,79627.0,0.062738]
[1731255853347,0.10332,79628.0,79627.0,0.062738]
[1731255854452,0.12845403,79628.0,79627.0,0.062738]
[1731255856552,0.3608,79630.0,79626.0,0.05160797]
[1731255856746,0.3608,79630.0,79617.0,0.44565453]
[1731255856747,0.10328,79629.0,79628.0,0.062737]
[1731255856953,0.10328,79629.0,79627.0,0.08485453]
[1731255857147,0.10328,79629.0,79628.0,0.062738]
[1731255860955,0.3608,79634.0,79633.0,0.062734]
[1731255861254,0.46408,79634.0,79633.0,0.062734]
[1731255863848,0.3608,79634.0,79633.0,0.062734]
[1731255864051,0.46408,79634.0,79633.0,0.062734]
[1731255864753,0.46408,79634.0,79633.0,0.14758853]
[1731255865349,0.464,79634.0,79633.0,0.14758853]
[1731255865748,0.1032,79634.0,79633.0,0.14758853]
[1731255868354,0.15,79640.0,79639.0,0.062729]
[1731255868548,0.2532,79640.0,79639.0,0.062729]
[1731255868747,0.2532,79640.0,79639.0,0.14758353]
[1731255869650,0.1746,79640.0,79639.0,0.14758353]
[1731255869857,0.0714,79640.0,79639.0,0.14758353]
[1731255870045,0.1746,79640.0,79639.0,0.14758353]
[1731255871257,0.0714,79640.0,79639.0,0.14758353]
[1731255871456,0.0714,79640.0,79639.0,0.062729]
[1731255871754,0.1032,79643.0,79642.0,0.062727]
[1731255871965,0.0737,79650.0,79649.0,0.062722]
[1731255872256,0.0737,79650.0,79649.0,0.50837653]
[1731255872257,0.1769,79650.0,79649.0,0.50837653]
[1731255872954,0.1769,79650.0,79649.0,0.423522]
[1731255873154,0.1769,79650.0,79649.0,0.50837653]
[1731255873657,0.0737,79650.0,79649.0,0.50837653]
[1731255876254,0.0737,79650.0,79649.0,0.423522]
[1731255877456,0.0737,79650.0,79649.0,0.403522]
[1731255880762,0.1032,79654.0,79653.0,0.062718]
[1731255880963,0.1032,79654.0,79653.0,0.14757253]
[1731255881367,0.1032,79654.0,79653.0,0.062718]
[1731255883265,0.0782,79659.0,79658.0,0.062714]
[1731255887571,0.36144,79661.0,79660.0,0.062713]
[1731255887770,0.3608,79661.0,79660.0,0.062713]
[1731255889273,0.3608,79661.0,79660.0,0.14756753]
[1731255889867,0.10316,79664.0,79663.0,0.062711]
[1731255890373,0.10316,79664.0,79660.0,0.08485453]
[1731255890374,0.02513403,79680.0,79665.0,0.062709]
[1731255890670,0.3608,79690.0,79672.0,0.14755753]
[1731255890872,0.10316,79686.0,79673.0,0.08485453]
[1731255891465,0.0731,79689.0,79673.0,0.08485453]
[1731255891771,0.10316,79685.0,79684.0,0.062694]
[1731255894373,0.10316,79687.0,79685.0,0.062693]
[1731255895176,0.0731,79689.0,79688.0,0.062691]
[1731255895577,0.0731,79689.0,79682.0,0.062695]
[1731255895883,0.3608,79683.0,79675.0,0.062701]
[1731255896178,0.3608,79683.0,79672.0,0.08485453]
[1731255896379,0.3608,79683.0,79678.0,0.062699]
[1731255896766,0.3608,79683.0,79679.0,0.08485453]
[1731255896970,0.3608,79683.0,79678.0,0.062699]
[1731255897171,0.3608,79683.0,79674.0,0.062702]
[1731255897483,0.3608,79683.0,79676.0,0.0627]
[1731255897772,0.3608,79683.0,79672.0,0.08485453]
[1731255898176,0.3608,79683.0,79669.0,0.05183856]
[1731255898483,0.41122246,79683.0,79673.0,0.062702]
[1731255898778,0.3608,79674.0,79673.0,0.062702]
[1731255899180,0.10304,79676.0,79673.0,0.062702]
[1731255899379,0.0745,79675.0,79673.0,0.062702]
[1731255899877,0.0785,79674.0,79670.0,0.05233214]
[1731255900080,0.0785,79674.0,79670.0,0.14755953]
[1731255901981,0.0785,79674.0,79671.0,0.08485453]
[1731255902187,0.0785,79674.0,79672.0,0.062703]
[1731255902383,0.0785,79674.0,79673.0,0.08485453]
[1731255902589,0.0785,79674.0,79673.0,0.14755753]
[1731255904391,0.18154,79674.0,79673.0,0.062703]
[1731255904593,0.0785,79674.0,79673.0,0.14755753]
[1731255905396,0.10304,79681.0,79673.0,0.23241206]
[1731255905696,0.1508,79689.0,79688.0,0.062691]
[1731255905895,0.25384,79689.0,79688.0,0.14754553]
[1731255907800,0.25384,79689.0,79681.0,0.062696]
[1731255907999,0.25384,79689.0,79684.0,0.062694]
[1731255908300,0.25384,79689.0,79685.0,0.062693]
[1731255908492,0.25384,79689.0,79687.0,0.062691]
[1731255910192,0.25384,79689.0,79688.0,0.00148403]
[1731255913206,0.25384,79689.0,79688.0,0.06417503]
[1731255915211,0.25384,79689.0,79688.0,0.05167979]
[1731255916003,0.31653,79689.0,79688.0,0.05167979]
[1731255916507,0.3472525,79689.0,79688.0,0.05167979]
[1731255919105,0.31653,79689.0,79688.0,0.05167979]
[1731255920004,0.34725199,79689.0,79688.0,0.05167979]
[1731255920216,0.28456199,79689.0,79688.0,0.05167979]
[1731255921101,0.32307034,79689.0,79688.0,0.05167979]
[1731255922106,0.28456199,79689.0,79688.0,0.05167979]
[1731255922706,0.25384,79689.0,79688.0,0.05167979]
[1731255923409,0.25384,79689.0,79688.0,0.11437079]
[1731255924513,0.21026176,79689.0,79688.0,0.11437079]
[1731255925711,0.21026176,79689.0,79688.0,0.05167979]
[1731255925712,0.21026164,79689.0,79688.0,0.05167979]
[1731255926305,0.31145955,79689.0,79688.0,0.05167979]
[1731255927004,0.27295164,79689.0,79688.0,0.05167979]
[1731255929013,0.24223,79689.0,79688.0,0.05167979]
[1731255931515,0.27287255,79689.0,79688.0,0.05167979]
[1731255931718,0.31138109,79689.0,79688.0,0.05167979]
[1731255932104,0.27287255,79689.0,79688.0,0.05167979]
[1731255933406,0.3113813,79689.0,79688.0,0.05167979]
[1731255933812,0.27287255,79689.0,79688.0,0.05167979]
[1731255934216,0.31138114,79689.0,79688.0,0.05167979]
[1731255935315,0.31138139,79689.0,79688.0,0.05167979]
[1731255937111,0.24869139,79689.0,79688.0,0.05167979]
[1731255937310,0.06923139,79689.0,79688.0,0.05167979]
[1731255937518,0.17219139,79689.0,79688.0,0.13653432]
[1731255937707,0.06922874,79689.0,79688.0,0.05167979]
[1731255937908,0.13368264,79689.0,79688.0,0.19922532]
[1731255938115,0.13368264,79689.0,79688.0,0.11437079]
[1731255938316,0.13368264,79689.0,79688.0,0.19922532]
[1731255939513,0.02510945,79707.0,79698.0,0.062682]
[1731255939715,0.03071775,79699.0,79698.0,0.062682]
[1731255940026,0.13367775,79699.0,79698.0,0.14753653]
[1731255940323,0.13367775,79699.0,79698.0,0.14902056]
[1731255941219,0.02510945,79707.0,79698.0,0.52542056]
[1731255941220,0.10296,79707.0,79698.0,0.52542056]
[1731255941431,0.10296,79707.0,79699.0,0.46125453]
[1731255941813,0.10296,79707.0,79699.0,0.82205453]
[1731255942228,0.422,79718.0,79699.0,0.90690906]
[1731255942419,0.10296,79717.0,79716.0,0.08485453]
[1731255943128,0.10296,79717.0,79716.0,0.08475453]
[1731255943327,0.10296,79717.0,79716.0,0.08623856]
[1731255944027,0.10296,79717.0,79716.0,0.00148403]
[1731255945319,0.46376,79717.0,79716.0,0.00148403]
[1731255947623,0.3608,79717.0,79716.0,0.00148403]
[1731255947833,0.46372,79717.0,79716.0,0.00148403]
[1731255955732,0.46364,79717.0,79716.0,0.00148403]
[1731255956831,0.46364,79717.0,79716.0,0.08633856]
[1731255959327,0.10284,79717.0,79716.0,0.08633856]
[1731255959536,0.10284,79717.0,79716.0,0.14900756]
[1731255959841,0.43794,79725.0,79716.0,0.08633856]
[1731255960130,0.43794,79725.0,79724.0,0.08485453]
[1731255960131,0.4373,79725.0,79724.0,0.08485453]
[1731255960332,0.5401,79725.0,79724.0,0.08485453]
[1731255960531,0.5401,79725.0,79724.0,0.08633856]
[1731255964834,0.4373,79725.0,79724.0,0.14900156]
[1731255965136,0.57080811,79725.0,79724.0,0.14900156]
[1731255966147,0.46800811,79725.0,79724.0,0.14900156]
[1731255966457,0.57080811,79725.0,79724.0,0.14900156]
[1731255967135,0.57080811,79725.0,79724.0,0.08633856]
[1731255967337,0.57080811,79725.0,79724.0,0.00148403]
[1731255967532,0.57080779,79725.0,79724.0,0.00148403]
[1731255970841,0.46800779,79725.0,79724.0,0.00148403]
[1731255971044,0.57080779,79725.0,79724.0,0.00148403]
[1731255972832,0.57080779,79725.0,79724.0,0.00138403]
[1731255975958,0.60929874,79725.0,79724.0,0.00138403]
[1731255976250,0.57080779,79725.0,79724.0,0.00138403]
[1731255976547,0.4636,79725.0,79724.0,0.06404703]
[1731255976753,0.4636,79725.0,79724.0,0.14890156]
[1731255976947,0.1028,79725.0,79724.0,0.14890156]
[1731255977349,0.13350606,79725.0,79724.0,0.14890156]
[1731255979047,0.13350606,79725.0,79724.0,0.06404703]
[1731255980550,0.03070606,79725.0,79724.0,0.06404703]
[1731255981749,0.1028,79730.0,79724.0,0.06404703]
[1731255982051,0.1028,79730.0,79729.0,0.08485453]
[1731255982453,0.1028,79730.0,79729.0,0.08623856]
[1731255982960,0.13350481,79730.0,79729.0,0.08623856]
[1731255984253,0.13350481,79730.0,79729.0,0.00138403]
[1731255984945,0.13350481,79730.0,79708.0,0.0765]
[1731255984946,0.49430628,79730.0,79708.0,0.0765]
[1731255985257,0.3608,79719.0,79715.0,0.08485453]
[1731255985444,0.10268,79718.0,79715.0,0.08485453]
[1731255987656,0.10268,79718.0,79715.0,0.13503329]
[1731255988068,0.0733,79717.0,79715.0,0.13503329]
[1731255989358,0.03070916,79716.0,79715.0,0.05017876]
[1731255989560,0.0733,79717.0,79715.0,0.05017876]
[1731255989864,0.03071067,79716.0,79715.0,0.05017876]
[1731255990055,0.0733,79717.0,79715.0,0.05017876]
[1731255990954,0.03071074,79716.0,79715.0,0.05017876]
[1731255991549,0.13339074,79716.0,79715.0,0.05017876]
[1731255992857,0.13339074,79716.0,79715.0,0.11284876]
[1731255993258,0.062669,79716.0,79715.0,0.05017876]
[1731255993560,0.165349,79716.0,79715.0,0.05017876]
[1731255994854,0.062676,79707.0,79704.0,0.062678]
[1731255995054,0.3608,79705.0,79697.0,0.05103943]
[1731255995253,0.10268,79704.0,79696.0,0.08485453]
[1731255995671,0.3608,79697.0,79688.0,0.05019576]
[1731255995966,0.10661762,79696.0,79689.0,0.06269]
[1731255996168,0.3608,79690.0,79689.0,0.06269]
[1731255996357,0.52617,79690.0,79688.0,0.05019576]
[1731255996560,0.062694,79684.0,79677.0,0.062699]
[1731255996758,0.3608,79682.0,79677.0,0.062699]
[1731255997158,0.03072443,79681.0,79677.0,0.062699]
[1731255997359,0.10272,79680.0,79677.0,0.062699]
[1731255998172,0.10272,79680.0,79669.0,0.13604909]
[1731255998173,0.10272,79680.0,79672.0,0.062703]
[1731255998356,0.3608,79674.0,79672.0,0.062703]
[1731255998971,0.10272,79680.0,79679.0,0.062698]
[1731255999860,0.3608,79682.0,79680.0,0.062696]
[1731256000073,0.10272,79681.0,79680.0,0.062696]
[1731256003067,0.3608,79682.0,79680.0,0.062696]
[1731256003271,0.10272,79681.0,79680.0,0.062696]
[1731256005373,0.3608,79684.0,79682.0,0.062695]
[1731256005572,0.0748,79688.0,79685.0,0.062693]
[1731256005771,0.10272,79687.0,79685.0,0.062693]
[1731256006465,0.0748,79688.0,79685.0,0.062693]
[1731256006667,0.10272,79687.0,79685.0,0.062693]
[1731256008269,0.0748,79688.0,79685.0,0.062693]
[1731256008270,0.10272,79686.0,79685.0,0.062693]
[1731256009167,0.41119034,79691.0,79683.0,0.08485453]
[1731256009374,0.3608,79691.0,79689.0,0.14754353]
[1731256009570,0.3608,79691.0,79689.0,0.062689]
[1731256010872,0.3608,79691.0,79690.0,0.062689]
[1731256011970,0.0756,79698.0,79690.0,0.062689]
[1731256012269,0.10272,79696.0,79695.0,0.062685]
[1731256012471,0.10272,79696.0,79695.0,0.14753953]
[1731256012671,0.3608,79710.0,79706.0,0.062676]
[1731256012876,0.10276,79709.0,79707.0,0.062675]
[1731256013072,0.10276,79709.0,79708.0,0.08485453]
[1731256013469,0.0731,79712.0,79708.0,0.14752853]
[1731256013670,0.10276,79711.0,79709.0,0.062674]
[1731256015070,0.10272,79710.0,79709.0,0.062674]
[1731256017162,0.10272,79710.0,79704.0,0.062678]
[1731256017371,0.3608,79709.0,79705.0,0.062677]
[1731256017575,0.3608,79709.0,79706.0,0.062677]
[1731256017880,0.3608,79709.0,79707.0,0.062676]
[1731256018876,0.3608,79709.0,79702.0,0.3608]
[1731256019070,0.3608,79709.0,79701.0,0.06268]
[1731256019273,0.3608,79702.0,79697.0,0.062683]
[1731256019671,0.42348,79702.0,79697.0,0.062683]
[1731256019871,0.42348,79702.0,79691.0,0.0737]
[1731256020067,0.3608,79702.0,79691.0,0.0737]
[1731256020269,0.3608,79702.0,79700.0,0.062681]
[1731256020469,0.137476,79708.0,79706.0,0.062676]
[1731256020470,0.0748,79708.0,79706.0,0.062676]
[1731256020679,0.3608,79713.0,79711.0,0.062673]
[1731256020977,0.17578,79712.0,79711.0,0.062673]
[1731256027275,0.53658,79712.0,79711.0,0.062673]
[1731256027778,0.53658,79712.0,79706.0,0.08485453]
[1731256028078,0.53658,79712.0,79708.0,0.062675]
[1731256028268,0.53658,79712.0,79709.0,0.062674]
[1731256028469,0.53658,79712.0,79710.0,0.062673]
[1731256028872,0.53658,79712.0,79711.0,0.062673]
[1731256037475,0.599252,79712.0,79711.0,0.062673]
[1731256037776,0.84097596,79712.0,79700.0,0.062681]
[1731256037975,0.062683,79698.0,79686.0,0.062692]
[1731256038182,0.062683,79698.0,79685.0,0.08485453]
[1731256038183,0.24858,79697.0,79685.0,0.08485453]
[1731256038577,0.24858,79697.0,79695.0,0.062685]
[1731256038777,0.311264,79697.0,79695.0,0.062685]
[1731256040280,0.311264,79697.0,79685.0,0.13618166]
[1731256040281,0.03072018,79696.0,79685.0,0.13618166]
[1731256040480,0.3608,79691.0,79689.0,0.06269]
[1731256041380,0.3608,79691.0,79690.0,0.062689]
[1731256041988,0.3915213,79691.0,79690.0,0.062689]
[1731256042187,0.3608,79691.0,79690.0,0.062689]
[1731256045281,0.3608,79691.0,79681.0,0.0746]
[1731256045282,0.423489,79691.0,79681.0,0.0746]
[1731256045493,0.423489,79691.0,79686.0,0.062692]
[1731256045993,0.423489,79691.0,79687.0,0.062691]
[1731256046191,0.3608,79691.0,79689.0,0.06269]
[1731256046387,0.3608,79691.0,79688.0,0.08485453]
[1731256046691,0.062685,79696.0,79688.0,0.08485453]
[1731256047093,0.3608,79694.0,79688.0,0.08485453]
[1731256047786,0.3608,79694.0,79690.0,0.062689]
[1731256048787,0.3608,79694.0,79691.0,0.062688]
[1731256051280,0.3608,79694.0,79692.0,0.062688]
[1731256052290,0.3608,79694.0,79693.0,0.062687]
[1731256057989,0.10264,79698.0,79691.0,0.05152207]
[1731256058195,0.02510719,79703.0,79702.0,0.06268]
[1731256058589,0.02510719,79703.0,79698.0,0.0694]
[1731256058590,0.3608,79709.0,79698.0,0.0694]
[1731256058904,0.13335556,79708.0,79706.0,0.062676]
[1731256059093,0.03071556,79707.0,79706.0,0.062676]
[1731256059487,0.10264,79708.0,79706.0,0.062676]
[1731256060402,0.10264,79708.0,79707.0,0.08485453]
[1731256060694,0.1333542,79708.0,79707.0,0.08485453]
[1731256062797,0.10264,79708.0,79707.0,0.08485453]
[1731256063300,0.10264,79708.0,79707.0,0.13620017]
[1731256063611,0.1333531,79708.0,79707.0,0.13620017]
[1731256064106,0.10264,79708.0,79706.0,0.14753053]
[1731256064297,0.10264,79708.0,79706.0,0.062676]
[1731256064898,0.03071325,79707.0,79700.0,0.062681]
[1731256065101,0.3608,79701.0,79700.0,0.062581]
[1731256065304,0.0727,79707.0,79691.0,0.08485453]
[1731256065512,0.03071511,79706.0,79701.0,0.06268]
[1731256065802,0.0727,79707.0,79704.0,0.062678]
[1731256066004,0.03071515,79706.0,79704.0,0.062678]
[1731256066200,0.0727,79707.0,79704.0,0.14753253]
[1731256066501,0.10264,79708.0,79704.0,0.08485453]
[1731256067603,0.41286718,79709.0,79707.0,0.062676]
[1731256067898,0.10264,79708.0,79707.0,0.062676]
[1731256068301,0.10264,79708.0,79707.0,0.14753053]
[1731256070509,0.3608,79718.0,79717.0,0.062668]
[1731256070695,0.49415214,79718.0,79717.0,0.14752253]
[1731256070894,0.39151214,79718.0,79717.0,0.14752253]
[1731256071206,0.3608,79718.0,79717.0,0.14752253]
[1731256071904,0.1488,79728.0,79717.0,0.14752253]
[1731256071905,0.10264,79723.0,79717.0,0.14752253]
[1731256072106,0.10264,79723.0,79722.0,0.14751853]
[1731256072301,0.00423,79731.0,79730.0,0.062658]
[1731256072799,0.10683,79731.0,79730.0,0.062658]
[1731256073008,0.13753513,79731.0,79730.0,0.062658]
[1731256073201,0.10683,79731.0,79730.0,0.062658]
[1731256075002,0.10683,79731.0,79728.0,0.08485453]
[1731256075202,0.1026,79731.0,79728.0,0.14751353]
[1731256076304,0.1026,79731.0,79728.0,0.08485453]
[1731256076503,0.1026,79731.0,79729.0,0.062658]
[1731256079021,0.83427006,79733.0,79729.0,0.062658]
[1731256079203,0.10252,79732.0,79728.0,0.08485453]
[1731256079403,0.10252,79732.0,79730.0,0.062657]
[1731256084426,0.062659,79729.0,79714.0,0.06267]
[1731256084724,0.3608,79721.0,79716.0,0.062668]
[1731256084926,0.3608,79731.0,79720.0,0.423466]
[1731256085218,0.10252,79730.0,79722.0,0.062664]
[1731256085516,0.10252,79730.0,79729.0,0.08485453]
[1731256089023,0.10252,79730.0,79723.0,0.062663]
[1731256089215,0.3608,79724.0,79723.0,0.062663]
[1731256090421,0.00064,79731.0,79730.0,0.062658]
[1731256090619,0.00064,79731.0,79730.0,0.50831253]
[1731256090821,0.10252,79741.0,79738.0,0.062651]
[1731256091024,0.10252,79741.0,79739.0,0.08485453]
[1731256091322,0.0729,79740.0,79739.0,0.08485453]
[1731256091524,0.0729,79740.0,79738.0,0.062651]
[1731256091919,0.0682,79739.0,79738.0,0.062651]
[1731256093730,0.062652,79737.0,79731.0,0.062656]
[1731256093933,0.062654,79736.0,79731.0,0.062656]
[1731256094422,0.062654,79736.0,79731.0,0.423456]
[1731256094623,0.062654,79736.0,79731.0,0.062656]
[1731256094821,0.0308379,79735.0,79731.0,0.062656]
[1731256095018,0.0308379,79734.0,79731.0,0.062656]
[1731256095317,0.0308379,79733.0,79731.0,0.062656]
[1731256095514,0.03089529,79732.0,79731.0,0.062656]
[1731256095918,0.03081789,79732.0,79731.0,0.062656]
[1731256096930,0.09347489,79732.0,79723.0,0.3608]
[1731256097129,0.13333789,79731.0,79728.0,0.062659]
[1731256097323,0.03081789,79730.0,79728.0,0.062659]
[1731256097525,0.03081789,79729.0,79728.0,0.062659]
[1731256097920,0.062658,79730.0,79728.0,0.062659]
[1731256098529,0.03070585,79729.0,79728.0,0.062659]
[1731256098823,0.062658,79730.0,79728.0,0.062659]
[1731256099030,0.03070567,79729.0,79728.0,0.062659]
[1731256099419,0.10252,79731.0,79730.0,0.062658]
[1731256099626,0.13323098,79731.0,79730.0,0.062658]
[1731256105030,0.13319098,79731.0,79730.0,0.062658]
[1731256107934,0.03071098,79731.0,79730.0,0.062658]
[1731256108235,0.13319098,79731.0,79730.0,0.062658]
[1731256108828,0.03071098,79731.0,79730.0,0.062658]
[1731256109327,0.069196,79731.0,79730.0,0.062658]
[1731256109528,0.03071098,79731.0,79730.0,0.062658]
[1731256111128,0.03071098,79731.0,79730.0,0.062558]
[1731256111333,0.10248,79735.0,79729.0,0.062659]
[1731256111529,0.10248,79735.0,79733.0,0.062655]
[1731256111530,0.03121362,79734.0,79733.0,0.062655]
[1731256112637,0.03121362,79734.0,79733.0,0.14750953]
[1731256112831,0.17538,79740.0,79739.0,0.062651]
[1731256113032,0.20677265,79740.0,79739.0,0.50830553]
[1731256114032,0.24525339,79740.0,79739.0,0.50830553]
[1731256118046,0.14277339,79740.0,79739.0,0.50830553]
[1731256118542,0.10429265,79740.0,79739.0,0.50830553]
[1731256118944,0.10427117,79740.0,79739.0,0.50830553]
[1731256119850,0.14275311,79740.0,79739.0,0.50830553]
[1731256122243,0.10427117,79740.0,79739.0,0.50830553]
[1731256123749,0.10441561,79740.0,79739.0,0.50830553]
[1731256125145,0.0729,79740.0,79739.0,0.50830553]
[1731256125445,0.10434027,79740.0,79739.0,0.50830553]
[1731256126543,0.0729,79740.0,79739.0,0.50830553]
[1731256127846,0.10447413,79740.0,79739.0,0.50830553]
[1731256131146,0.10447413,79740.0,79739.0,0.423451]
[1731256131348,0.16712413,79740.0,79739.0,0.3608]
[1731256131564,0.16712413,79740.0,79736.0,0.062653]
[1731256131565,0.20560732,79740.0,79736.0,0.062653]
[1731256131741,0.03157413,79739.0,79737.0,0.062652]
[1731256131939,0.13555,79740.0,79738.0,0.062651]
[1731256132342,0.03108779,79739.0,79738.0,0.062651]
[1731256132546,0.062653,79737.0,79728.0,0.3608]
[1731256132747,0.03108779,79736.0,79727.0,0.42346]
[1731256132958,0.03108779,79735.0,79727.0,0.42346]
[1731256133145,0.13356779,79734.0,79728.0,0.062659]
[1731256133339,0.03108779,79733.0,79727.0,0.3608]
[1731256133543,0.03108779,79732.0,79727.0,0.3608]
[1731256133747,0.03108779,79731.0,79727.0,0.3608]
[1731256133951,0.03108779,79730.0,79726.0,0.05178641]
[1731256134249,0.10248,79734.0,79729.0,0.062659]
[1731256134454,0.03110788,79733.0,79729.0,0.062659]
[1731256134747,0.03110788,79732.0,79731.0,0.08485453]
[1731256135342,0.05080054,79739.0,79731.0,0.08485453]
[1731256135652,0.0743,79741.0,79739.0,0.062651]
[1731256135653,0.17762,79741.0,79739.0,0.062651]
[1731256135849,0.06995841,79740.0,79739.0,0.062651]
[1731256136046,0.03147674,79740.0,79739.0,0.062651]
[1731256136353,0.06995799,79740.0,79739.0,0.062651]
[1731256137147,0.06995799,79740.0,79739.0,0.423451]
[1731256137556,0.03147674,79740.0,79739.0,0.423451]
[1731256138342,0.03147674,79740.0,79739.0,0.062651]
[1731256138343,0.06995761,79740.0,79739.0,0.062651]
[1731256138656,0.06995761,79740.0,79736.0,0.05016554]
[1731256138844,0.06995761,79739.0,79736.0,0.05016554]
[1731256139042,0.06995761,79738.0,79736.0,0.05016554]
[1731256139253,0.14065761,79737.0,79736.0,0.11281854]
[1731256140244,0.14065761,79737.0,79736.0,0.05016554]
[1731256141342,0.15227288,79737.0,79736.0,0.05016554]
[1731256141541,0.15168921,79737.0,79736.0,0.05016554]
[1731256143251,0.10159307,79737.0,79736.0,0.05016554]
[1731256145058,0.14007721,79737.0,79736.0,0.05016554]
[1731256147459,0.14007742,79737.0,79736.0,0.05016554]
[1731256149354,0.14007742,79737.0,79736.0,0.11281854]
[1731256152364,0.25027742,79737.0,79736.0,0.11281854]
[1731256154171,0.21179307,79737.0,79736.0,0.11281854]
[1731256154761,0.03089307,79737.0,79736.0,0.47361854]
[1731256154961,0.03124405,79740.0,79736.0,0.52913462]
[1731256155274,0.03124405,79739.0,79738.0,0.062652]
[1731256155467,0.03124405,79739.0,79737.0,0.062652]
[1731256155764,0.1102,79744.0,79737.0,0.062652]
[1731256155963,0.03204889,79743.0,79742.0,0.062648]
[1731256156163,0.03204889,79743.0,79742.0,0.11816408]